[Event "CCT Chessable Masters Play-In 2025"]
[Site "Online"]
[Date "2025.02.17"]
[Round "2.20"]
[White "Salem, A.R. Saleh"]
[Black "Muradli, Mahammad"]
[Result "0-1"]
[ECO "D35"]
[WhiteElo "2631"]
[BlackElo "2588"]
[PlyCount "82"]
[EventDate "2025.02.13"]
[EventType "swiss"]
[EventCountry "NET"]
[TimeControl "600"]
[WhiteClock "0:00:35"]
[BlackClock "0:02:17"]

1. d4 {[%emt 0:00:01]} Nf6 {[%emt 0:00:03]} 2. c4 {[%emt 0:00:01]} e6 {[%emt 0:00:00]} 3. Nc3 {[%emt 0:00:00]} d5 {[%emt 0:00:05]} 4. cxd5 {[%emt 0:00:01]} exd5 {[%emt 0:00:00]} 5. Bg5 {[%emt 0:00:00]} c6 {[%emt 0:00:02]} 6. e3 {[%emt 0:00:01]} h6 {[%emt 0:00:00]} 7. Bh4 {[%emt 0:00:00]} Be7 {[%emt 0:00:01]} 8. Bd3 {[%emt 0:00:01]} O-O {[%emt 0:00:02]} 9. Nge2 {[%emt 0:00:00]} Ne8 {[%emt 0:00:04]} 10. Bg3 {[%emt 0:00:02]} Nd6 {[%emt 0:00:01]} 11. Qc2 {[%emt 0:00:00]} Re8 {[%emt 0:00:09]} 12. O-O {[%emt 0:00:01]} Bf8 {[%emt 0:00:00]} 13. Kh1 {[%emt 0:00:02]} a5 {[%emt 0:00:16]} 14. Rae1 {[%emt 0:00:09]} Na6 {[%emt 0:00:04]} 15. a3 {[%emt 0:00:01]} b5 {[%emt 0:00:11]} 16. Ng1 {[%emt 0:00:06]} Nc4 {[%emt 0:00:15]} 17. Nf3 {[%emt 0:00:13]} Bd6 {[%emt 0:00:13]} 18. e4 {[%emt 0:00:39]} Bxg3 {[%emt 0:00:21]} 19. fxg3 {[%emt 0:00:00]} dxe4 {[%emt 0:00:21]} 20. Bxe4 {[%emt 0:00:01]} Bd7 {[%emt 0:00:20]} 21. Qf2 {[%emt 0:00:22]} f6 {[%emt 0:00:25]} 22. d5 {[%emt 0:00:17]} Nd6 {[%emt 0:00:17]} 23. Bg6 {[%emt 0:00:06]} Rxe1 {[%emt 0:00:12]} 24. Rxe1 {[%emt 0:00:26]} c5 {[%emt 0:00:30]} 25. Ne2 {[%emt 0:00:35]} f5 {[%emt 0:00:31]} 26. Nf4 {[%emt 0:00:21]} Ne4 {[%emt 0:00:10]} 27. Rxe4 {[%emt 0:00:13]} fxe4 {[%emt 0:00:00]} 28. Ne5 {[%emt 0:00:00]} Be8 {[%emt 0:00:33]} 29. Bxe4 {[%emt 0:01:07]} Qf6 {[%emt 0:00:10]} 30. Ng4 {[%emt 0:00:01]} Qd4 {[%emt 0:00:05]} 31. Qc2 {[%emt 0:00:01]} Bf7 {[%emt 0:00:21]} 32. Ne2 {[%emt 0:01:39]} Qc4 {[%emt 0:00:25]} 33. Qxc4 {[%emt 0:00:07]} bxc4 {[%emt 0:00:00]} 34. Nc3 {[%emt 0:00:04]} Rb8 {[%emt 0:00:11]} 35. Ne5 {[%emt 0:00:15]} Rxb2 {[%emt 0:00:28]} 36. h4 {[%emt 0:00:56]} Nb8 {[%emt 0:00:21]} 37. a4 {[%emt 0:00:27]} Rb3 {[%emt 0:00:16]} 38. Nb5 {[%emt 0:00:01]} Re3 {[%emt 0:00:11]} 39. Nd6 {[%emt 0:00:42]} c3 {[%emt 0:00:02]} 40. Nc6 {[%emt 0:00:15]} Rxe4 {[%emt 0:00:06]} 41. Nxe4 {[%emt 0:00:11]} c2 {[%emt 0:00:01]} 0-1

[Event "CCT Chessable Masters Play-In 2025"]
[Site "Online"]
[Date "2025.02.17"]
[Round "2.21"]
[White "Narayanan, Srinath"]
[Black "Deac, Bogdan-Daniel"]
[Result "0-1"]
[ECO "D32"]
[WhiteElo "2516"]
[BlackElo "2692"]
[PlyCount "124"]
[EventDate "2025.02.13"]
[EventType "swiss"]
[EventCountry "NET"]
[TimeControl "600"]
[WhiteClock "0:00:24"]
[BlackClock "0:00:41"]

1. Nf3 {[%emt 0:00:05]} d5 {[%emt 0:00:02]} 2. e3 {[%emt 0:00:01]} Nf6 {[%emt 0:00:02]} 3. c4 {[%emt 0:00:00]} e6 {[%emt 0:00:01]} 4. Nc3 {[%emt 0:00:01]} Bd6 {[%emt 0:00:00]} 5. b3 {[%emt 0:00:02]} O-O {[%emt 0:00:01]} 6. Bb2 {[%emt 0:00:00]} c5 {[%emt 0:00:01]} 7. cxd5 {[%emt 0:00:02]} exd5 {[%emt 0:00:01]} 8. d4 {[%emt 0:00:01]} Nc6 {[%emt 0:00:01]} 9. Be2 {[%emt 0:00:02]} cxd4 {[%emt 0:00:01]} 10. Nxd4 {[%emt 0:00:00]} Nxd4 {[%emt 0:00:01]} 11. Qxd4 {[%emt 0:00:00]} Re8 {[%emt 0:00:01]} 12. O-O {[%emt 0:00:08]} Be5 {[%emt 0:00:05]} 13. Qd2 {[%emt 0:00:02]} Bf5 {[%emt 0:02:18]} 14. Rfd1 {[%emt 0:00:06]} Qa5 {[%emt 0:00:41]} 15. Na4 {[%emt 0:02:44]} Qxd2 {[%emt 0:00:26]} 16. Rxd2 {[%emt 0:00:00]} Bxb2 {[%emt 0:00:05]} 17. Nxb2 {[%emt 0:00:08]} Rac8 {[%emt 0:00:02]} 18. Bf3 {[%emt 0:00:19]} Be4 {[%emt 0:01:10]} 19. Rad1 {[%emt 0:00:47]} h6 {[%emt 0:00:28]} 20. Nd3 {[%emt 0:00:09]} d4 {[%emt 0:00:04]} 21. exd4 {[%emt 0:00:11]} Bxf3 {[%emt 0:00:01]} 22. gxf3 {[%emt 0:00:01]} Nd5 {[%emt 0:00:03]} 23. Kf1 {[%emt 0:00:03]} Kf8 {[%emt 0:00:18]} 24. Re1 {[%emt 0:00:04]} Red8 {[%emt 0:00:07]} 25. Ne5 {[%emt 0:00:25]} Rc3 {[%emt 0:00:10]} 26. h4 {[%emt 0:00:51]} Nf4 {[%emt 0:00:26]} 27. Kg1 {[%emt 0:00:18]} f6 {[%emt 0:00:09]} 28. Nc4 {[%emt 0:00:18]} Ng6 {[%emt 0:00:32]} 29. h5 {[%emt 0:00:55]} Nh4 {[%emt 0:00:08]} 30. Red1 {[%emt 0:00:17]} Nxf3+ {[%emt 0:00:10]} 31. Kg2 {[%emt 0:00:00]} Nxd2 {[%emt 0:00:05]} 32. Rxd2 {[%emt 0:00:00]} Rd5 {[%emt 0:00:00]} 33. Ne3 {[%emt 0:00:03]} Rxh5 {[%emt 0:00:02]} 34. d5 {[%emt 0:00:00]} Ke8 {[%emt 0:00:06]} 35. Kf3 {[%emt 0:00:01]} Re5 {[%emt 0:00:06]} 36. Kf4 {[%emt 0:00:08]} h5 {[%emt 0:00:07]} 37. Kf3 {[%emt 0:00:07]} g5 {[%emt 0:00:04]} 38. Kg2 {[%emt 0:00:01]} Rexe3 {[%emt 0:00:07]} 39. fxe3 {[%emt 0:00:03]} Rxe3 {[%emt 0:00:00]} 40. Rc2 {[%emt 0:00:09]} Kd7 {[%emt 0:00:05]} 41. Rf2 {[%emt 0:00:01]} Ke7 {[%emt 0:00:14]} 42. Rc2 {[%emt 0:00:00]} Kd6 {[%emt 0:00:06]} 43. Rf2 {[%emt 0:00:01]} Ke5 {[%emt 0:00:02]} 44. Rc2 {[%emt 0:00:01]} Kxd5 {[%emt 0:00:02]} 45. Rc7 {[%emt 0:00:01]} Re2+ {[%emt 0:00:01]} 46. Kf3 {[%emt 0:00:02]} Rxa2 {[%emt 0:00:01]} 47. Rxb7 {[%emt 0:00:00]} a5 {[%emt 0:00:05]} 48. Ra7 {[%emt 0:00:12]} Ra3 {[%emt 0:00:04]} 49. Kg2 {[%emt 0:00:00]} Rxb3 {[%emt 0:00:05]} 50. Rxa5+ {[%emt 0:00:01]} Ke6 {[%emt 0:00:01]} 51. Kf2 {[%emt 0:00:01]} h4 {[%emt 0:00:01]} 52. Kg2 {[%emt 0:00:00]} Kf7 {[%emt 0:00:01]} 53. Kh2 {[%emt 0:00:01]} Kg6 {[%emt 0:00:00]} 54. Kg2 {[%emt 0:00:00]} g4 {[%emt 0:00:01]} 55. Kh2 {[%emt 0:00:01]} f5 {[%emt 0:00:01]} 56. Kg2 {[%emt 0:00:00]} Kg5 {[%emt 0:00:01]} 57. Ra4 {[%emt 0:00:01]} h3+ {[%emt 0:00:05]} 58. Kh2 {[%emt 0:00:00]} f4 {[%emt 0:00:01]} 59. Ra8 {[%emt 0:00:23]} Rb2+ {[%emt 0:00:02]} 60. Kh1 {[%emt 0:00:00]} g3 {[%emt 0:00:02]} 61. Ra1 {[%emt 0:00:10]} f3 {[%emt 0:00:03]} 62. Rc1 {[%emt 0:00:08]} Rh2+ {[%emt 0:00:03]} 0-1

[Event "CCT Chessable Masters Play-In 2025"]
[Site "Online"]
[Date "2025.02.17"]
[Round "2.22"]
[White "Sargsyan, Shant"]
[Black "Ioannidis, Evgenios"]
[Result "1-0"]
[ECO "D02"]
[WhiteElo "2660"]
[BlackElo "2484"]
[PlyCount "89"]
[EventDate "2025.02.13"]
[EventType "swiss"]
[EventCountry "NET"]
[TimeControl "600"]
[WhiteClock "0:04:49"]
[BlackClock "0:03:49"]

1. d4 {[%emt 0:00:01]} d5 {[%emt 0:00:03]} 2. Nf3 {[%emt 0:00:00]} Nf6 {[%emt 0:00:01]} 3. Bf4 {[%emt 0:00:00]} c5 {[%emt 0:00:01]} 4. e3 {[%emt 0:00:00]} Nc6 {[%emt 0:00:01]} 5. Nbd2 {[%emt 0:00:01]} Bg4 {[%emt 0:00:03]} 6. c3 {[%emt 0:00:03]} e6 {[%emt 0:00:05]} 7. Qb3 {[%emt 0:00:01]} Qb6 {[%emt 0:00:08]} 8. Ne5 {[%emt 0:00:06]} Nxe5 {[%emt 0:00:06]} 9. Bxe5 {[%emt 0:00:01]} Nd7 {[%emt 0:00:07]} 10. Bb5 {[%emt 0:00:08]} c4 {[%emt 0:00:05]} 11. Qa4 {[%emt 0:00:09]} Qd8 {[%emt 0:00:41]} 12. b3 {[%emt 0:00:09]} cxb3 {[%emt 0:00:03]} 13. axb3 {[%emt 0:00:02]} a6 {[%emt 0:00:01]} 14. c4 {[%emt 0:00:09]} Rc8 {[%emt 0:00:02]} 15. Bxd7+ {[%emt 0:00:01]} Qxd7 {[%emt 0:00:01]} 16. c5 {[%emt 0:00:05]} f6 {[%emt 0:00:12]} 17. Bg3 {[%emt 0:00:01]} Be7 {[%emt 0:00:01]} 18. f3 {[%emt 0:00:11]} Bf5 {[%emt 0:00:02]} 19. Kf2 {[%emt 0:00:03]} Bd3 {[%emt 0:00:01]} 20. Qxd7+ {[%emt 0:00:04]} Kxd7 {[%emt 0:00:01]} 21. b4 {[%emt 0:00:00]} Bd8 {[%emt 0:00:17]} 22. Rhc1 {[%emt 0:00:02]} Re8 {[%emt 0:00:03]} 23. Rc3 {[%emt 0:00:04]} Bb5 {[%emt 0:00:01]} 24. e4 {[%emt 0:00:03]} g5 {[%emt 0:00:11]} 25. h4 {[%emt 0:00:03]} f5 {[%emt 0:00:10]} 26. exf5 {[%emt 0:00:23]} exf5 {[%emt 0:00:08]} 27. Be5 {[%emt 0:00:01]} Bc7 {[%emt 0:00:11]} 28. f4 {[%emt 0:00:20]} gxf4 {[%emt 0:00:09]} 29. Nf3 {[%emt 0:00:00]} Bd8 {[%emt 0:00:05]} 30. Re1 {[%emt 0:00:16]} Re6 {[%emt 0:00:06]} 31. Rcc1 {[%emt 0:00:15]} Be7 {[%emt 0:00:01]} 32. Ng5 {[%emt 0:00:34]} Bxg5 {[%emt 0:00:09]} 33. hxg5 {[%emt 0:00:01]} Rg8 {[%emt 0:00:02]} 34. Rh1 {[%emt 0:00:04]} Rxg5 {[%emt 0:00:05]} 35. Rxh7+ {[%emt 0:00:02]} Re7 {[%emt 0:00:01]} 36. Rch1 {[%emt 0:00:10]} Rg4 {[%emt 0:02:02]} 37. Rxe7+ {[%emt 0:00:08]} Kxe7 {[%emt 0:00:00]} 38. Rh7+ {[%emt 0:00:01]} Ke6 {[%emt 0:00:01]} 39. Rxb7 {[%emt 0:00:09]} Bd3 {[%emt 0:00:00]} 40. c6 {[%emt 0:00:37]} Be4 {[%emt 0:00:03]} 41. c7 {[%emt 0:00:15]} Rxg2+ {[%emt 0:00:01]} 42. Ke1 {[%emt 0:00:11]} Rg1+ {[%emt 0:00:11]} 43. Kf2 {[%emt 0:00:13]} Rg2+ {[%emt 0:00:01]} 44. Kf1 {[%emt 0:00:03]} Rc2 {[%emt 0:00:28]} 45. Rb8 {[%emt 0:00:01]} 1-0

[Event "CCT Chessable Masters Play-In 2025"]
[Site "Online"]
[Date "2025.02.17"]
[Round "2.23"]
[White "Naroditsky, Daniel"]
[Black "Sarana, Alexey"]
[Result "1/2-1/2"]
[ECO "A07"]
[WhiteElo "2619"]
[BlackElo "2672"]
[PlyCount "68"]
[EventDate "2025.02.13"]
[EventType "swiss"]
[EventCountry "NET"]
[TimeControl "600"]
[WhiteClock "0:03:32"]
[BlackClock "0:03:44"]

1. Nf3 {[%emt 0:00:01]} d5 {[%emt 0:00:02]} 2. g3 {[%emt 0:00:02]} c6 {[%emt 0:00:01]} 3. Bg2 {[%emt 0:00:01]} Bf5 {[%emt 0:00:01]} 4. O-O {[%emt 0:00:01]} Nd7 {[%emt 0:00:02]} 5. d3 {[%emt 0:00:03]} e5 {[%emt 0:00:02]} 6. Nc3 {[%emt 0:00:10]} Ngf6 {[%emt 0:00:10]} 7. e4 {[%emt 0:00:03]} dxe4 {[%emt 0:00:03]} 8. dxe4 {[%emt 0:00:01]} Nxe4 {[%emt 0:00:06]} 9. Nxe4 {[%emt 0:00:49]} Bxe4 {[%emt 0:00:01]} 10. Nxe5 {[%emt 0:01:00]} Bxg2 {[%emt 0:00:35]} 11. Re1 {[%emt 0:00:01]} Nxe5 {[%emt 0:01:10]} 12. Rxe5+ {[%emt 0:00:02]} Be7 {[%emt 0:00:01]} 13. Qxd8+ {[%emt 0:00:01]} Rxd8 {[%emt 0:00:01]} 14. Kxg2 {[%emt 0:00:01]} f6 {[%emt 0:00:09]} 15. Re1 {[%emt 0:00:02]} Kf7 {[%emt 0:00:01]} 16. Be3 {[%emt 0:00:01]} a6 {[%emt 0:00:05]} 17. Rad1 {[%emt 0:00:01]} h5 {[%emt 0:00:08]} 18. h4 {[%emt 0:00:02]} b5 {[%emt 0:00:50]} 19. Bb6 {[%emt 0:00:10]} Rxd1 {[%emt 0:00:09]} 20. Rxd1 {[%emt 0:00:00]} Rb8 {[%emt 0:00:02]} 21. Be3 {[%emt 0:00:26]} Rb7 {[%emt 0:00:20]} 22. Kf3 {[%emt 0:00:03]} Ke6 {[%emt 0:00:18]} 23. Re1 {[%emt 0:00:01]} Kf5 {[%emt 0:00:06]} 24. Rd1 {[%emt 0:00:12]} a5 {[%emt 0:00:09]} 25. b3 {[%emt 0:00:15]} a4 {[%emt 0:00:05]} 26. bxa4 {[%emt 0:00:47]} bxa4 {[%emt 0:00:01]} 27. Rd4 {[%emt 0:00:03]} a3 {[%emt 0:00:08]} 28. Rc4 {[%emt 0:00:13]} Rb2 {[%emt 0:00:08]} 29. Rxc6 {[%emt 0:00:01]} Rxa2 {[%emt 0:00:03]} 30. Bd4 {[%emt 0:00:00]} Bb4 {[%emt 0:00:12]} 31. Rc4 {[%emt 0:00:38]} Bd6 {[%emt 0:00:06]} 32. Rc6 {[%emt 0:00:13]} Bb4 {[%emt 0:00:53]} 33. Rc4 {[%emt 0:01:03]} Bd6 {[%emt 0:00:03]} 34. Rc6 {[%emt 0:00:01]} Bb4 {[%emt 0:00:05]} 1/2-1/2

[Event "CCT Chessable Masters Play-In 2025"]
[Site "Online"]
[Date "2025.02.17"]
[Round "2.24"]
[White "Hong, Andrew"]
[Black "Pichot, Alan"]
[Result "0-1"]
[ECO "B13"]
[WhiteElo "2579"]
[BlackElo "2613"]
[PlyCount "90"]
[EventDate "2025.02.13"]
[EventType "swiss"]
[EventCountry "NET"]
[TimeControl "600"]
[WhiteClock "0:00:03"]
[BlackClock "0:01:41"]

1. d4 {[%emt 0:00:01]} Nf6 {[%emt 0:00:02]} 2. Nc3 {[%emt 0:00:01]} d5 {[%emt 0:00:03]} 3. Bf4 {[%emt 0:00:01]} c5 {[%emt 0:00:07]} 4. e3 {[%emt 0:00:01]} cxd4 {[%emt 0:00:14]} 5. exd4 {[%emt 0:00:00]} a6 {[%emt 0:00:03]} 6. Bd3 {[%emt 0:00:03]} Nc6 {[%emt 0:00:04]} 7. Nce2 {[%emt 0:00:01]} Qb6 {[%emt 0:00:06]} 8. a4 {[%emt 0:00:02]} Bg4 {[%emt 0:00:06]} 9. c3 {[%emt 0:00:08]} e6 {[%emt 0:00:08]} 10. Qd2 {[%emt 0:00:08]} Na5 {[%emt 0:00:13]} 11. Qc2 {[%emt 0:00:02]} Rc8 {[%emt 0:00:06]} 12. h3 {[%emt 0:00:11]} Bh5 {[%emt 0:00:04]} 13. Be5 {[%emt 0:00:10]} Nc6 {[%emt 0:00:08]} 14. a5 {[%emt 0:01:31]} Nxa5 {[%emt 0:00:23]} 15. Nf4 {[%emt 0:00:03]} Bg6 {[%emt 0:00:03]} 16. Nxg6 {[%emt 0:00:37]} hxg6 {[%emt 0:00:02]} 17. Nf3 {[%emt 0:00:03]} Nc6 {[%emt 0:00:16]} 18. O-O {[%emt 0:00:12]} Nd7 {[%emt 0:01:22]} 19. Qa4 {[%emt 0:00:36]} Ndxe5 {[%emt 0:00:42]} 20. Nxe5 {[%emt 0:00:02]} Bd6 {[%emt 0:00:01]} 21. f4 {[%emt 0:00:10]} O-O {[%emt 0:00:53]} 22. Nd7 {[%emt 0:00:08]} Qxb2 {[%emt 0:00:01]} 23. Nxf8 {[%emt 0:00:32]} Qxc3 {[%emt 0:00:15]} 24. Nxe6 {[%emt 0:00:58]} Qxd3 {[%emt 0:00:03]} 25. Ng5 {[%emt 0:00:36]} Qxd4+ {[%emt 0:00:05]} 26. Kh1 {[%emt 0:00:21]} Qxa4 {[%emt 0:00:15]} 27. Rxa4 {[%emt 0:00:00]} Rd8 {[%emt 0:00:09]} 28. Rd1 {[%emt 0:00:05]} d4 {[%emt 0:00:06]} 29. g3 {[%emt 0:00:06]} a5 {[%emt 0:00:02]} 30. Rc4 {[%emt 0:00:08]} Bb4 {[%emt 0:00:15]} 31. Kg2 {[%emt 0:00:28]} a4 {[%emt 0:00:17]} 32. Rb1 {[%emt 0:00:18]} d3 {[%emt 0:00:05]} 33. Ne4 {[%emt 0:00:16]} d2 {[%emt 0:00:07]} 34. Nf2 {[%emt 0:00:01]} a3 {[%emt 0:00:08]} 35. Kf3 {[%emt 0:00:13]} Rd4 {[%emt 0:00:37]} 36. Rbxb4 {[%emt 0:00:25]} Nxb4 {[%emt 0:00:13]} 37. Rxd4 {[%emt 0:00:02]} a2 {[%emt 0:00:02]} 38. Rd8+ {[%emt 0:00:30]} Kh7 {[%emt 0:00:01]} 39. Ne4 {[%emt 0:00:01]} f6 {[%emt 0:00:01]} 40. Rd7 {[%emt 0:00:35]} a1=Q {[%emt 0:00:04]} 41. Rxd2 {[%emt 0:00:06]} Qf1+ {[%emt 0:00:13]} 42. Nf2 {[%emt 0:00:02]} Nc6 {[%emt 0:00:03]} 43. Kg4 {[%emt 0:00:00]} Nd4 {[%emt 0:00:06]} 44. Rxd4 {[%emt 0:00:02]} Qe2+ {[%emt 0:00:03]} 45. Kh4 {[%emt 0:00:01]} Qh5# {[%emt 0:00:02]} 0-1

[Event "CCT Chessable Masters Play-In 2025"]
[Site "Online"]
[Date "2025.02.17"]
[Round "2.25"]
[White "Korobov, Anton"]
[Black "Oparin, Grigoriy"]
[Result "1-0"]
[ECO "C55"]
[WhiteElo "2627"]
[BlackElo "2660"]
[PlyCount "167"]
[EventDate "2025.02.13"]
[EventType "swiss"]
[EventCountry "NET"]
[TimeControl "600"]
[WhiteClock "0:00:14"]

1. e4 {[%emt 0:00:36]} e5 {[%emt 0:00:36]} 2. Nf3 {[%emt 0:00:03]} Nc6 {[%emt 0:00:01]} 3. Bc4 {[%emt 0:00:02]} Nf6 {[%emt 0:00:01]} 4. d3 {[%emt 0:00:02]} Be7 {[%emt 0:00:01]} 5. Nc3 {[%emt 0:00:03]} O-O {[%emt 0:00:01]} 6. a4 {[%emt 0:00:02]} d6 {[%emt 0:00:02]} 7. O-O {[%emt 0:00:06]} Be6 {[%emt 0:00:02]} 8. Nd5 {[%emt 0:00:05]} Qd7 {[%emt 0:00:02]} 9. c3 {[%emt 0:00:08]} Rae8 {[%emt 0:00:02]} 10. a5 {[%emt 0:00:11]} Nd8 {[%emt 0:00:12]} 11. Qa4 {[%emt 0:00:27]} c6 {[%emt 0:00:08]} 12. Nxf6+ {[%emt 0:00:34]} Bxf6 {[%emt 0:00:00]} 13. Be3 {[%emt 0:00:03]} a6 {[%emt 0:00:28]} 14. h3 {[%emt 0:00:22]} g6 {[%emt 0:00:15]} 15. Rfd1 {[%emt 0:00:27]} Bg7 {[%emt 0:00:02]} 16. Bxe6 {[%emt 0:00:27]} Nxe6 {[%emt 0:00:01]} 17. d4 {[%emt 0:00:01]} exd4 {[%emt 0:00:05]} 18. cxd4 {[%emt 0:00:02]} d5 {[%emt 0:00:07]} 19. Ne5 {[%emt 0:00:34]} Qd6 {[%emt 0:00:52]} 20. Qb3 {[%emt 0:00:09]} Re7 {[%emt 0:01:17]} 21. exd5 {[%emt 0:00:05]} Qxd5 {[%emt 0:00:00]} 22. Qxd5 {[%emt 0:00:04]} cxd5 {[%emt 0:00:00]} 23. Ra3 {[%emt 0:00:41]} f6 {[%emt 0:00:06]} 24. Nd3 {[%emt 0:00:50]} f5 {[%emt 0:00:01]} 25. Nf4 {[%emt 0:00:11]} Nxf4 {[%emt 0:00:23]} 26. Bxf4 {[%emt 0:00:00]} Rc8 {[%emt 0:00:05]} 27. Bd6 {[%emt 0:00:10]} Re2 {[%emt 0:00:12]} 28. Rc3 {[%emt 0:00:17]} Rc6 {[%emt 0:00:18]} 29. Rxc6 {[%emt 0:00:46]} bxc6 {[%emt 0:00:00]} 30. b4 {[%emt 0:00:01]} Rc2 {[%emt 0:00:05]} 31. Bc5 {[%emt 0:00:05]} Kf7 {[%emt 0:00:00]} 32. Re1 {[%emt 0:00:01]} Bf6 {[%emt 0:00:01]} 33. g3 {[%emt 0:00:07]} g5 {[%emt 0:00:03]} 34. g4 {[%emt 0:00:03]} f4 {[%emt 0:00:09]} 35. Kg2 {[%emt 0:00:03]} Rd2 {[%emt 0:00:04]} 36. h4 {[%emt 0:00:05]} gxh4 {[%emt 0:00:07]} 37. Kf3 {[%emt 0:00:07]} Bg5 {[%emt 0:00:33]} 38. Re5 {[%emt 0:00:02]} h6 {[%emt 0:00:01]} 39. Kg2 {[%emt 0:00:19]} Rd3 {[%emt 0:00:26]} 40. Rf5+ {[%emt 0:00:02]} Kg6 {[%emt 0:00:04]} 41. Rf8 {[%emt 0:00:01]} h3+ {[%emt 0:00:11]} 42. Kh2 {[%emt 0:00:02]} Bh4 {[%emt 0:00:01]} 43. Rxf4 {[%emt 0:00:11]} Bd8 {[%emt 0:00:57]} 44. Bd6 {[%emt 0:00:01]} Bf6 {[%emt 0:00:24]} 45. Be5 {[%emt 0:00:06]} Be7 {[%emt 0:00:01]} 46. Rf5 {[%emt 0:00:12]} Rb3 {[%emt 0:00:05]} 47. f4 {[%emt 0:00:01]} Rxb4 {[%emt 0:00:10]} 48. Kxh3 {[%emt 0:00:01]} Ra4 {[%emt 0:00:02]} 49. Rh5 {[%emt 0:00:02]} Bf8 {[%emt 0:00:13]} 50. f5+ {[%emt 0:00:01]} Kf7 {[%emt 0:00:01]} 51. g5 {[%emt 0:00:03]} hxg5 {[%emt 0:00:02]} 52. Rh7+ {[%emt 0:00:01]} Kg8 {[%emt 0:00:15]} 53. Rc7 {[%emt 0:00:04]} c5 {[%emt 0:00:02]} 54. Kg4 {[%emt 0:00:03]} cxd4 {[%emt 0:00:02]} 55. Kh5 {[%emt 0:00:02]} Rc4 {[%emt 0:00:02]} 56. Ra7 {[%emt 0:00:00]} d3 {[%emt 0:00:08]} 57. Rd7 {[%emt 0:00:02]} d4 {[%emt 0:00:04]} 58. Bxd4 {[%emt 0:00:01]} d2 {[%emt 0:00:03]} 59. Be3 {[%emt 0:00:05]} Bb4 {[%emt 0:00:07]} 60. Kg6 {[%emt 0:00:04]} Rc6+ {[%emt 0:00:00]} 61. f6 {[%emt 0:00:00]} Rd6 {[%emt 0:00:01]} 62. Rxd6 {[%emt 0:00:04]} Bxd6 {[%emt 0:00:00]} 63. f7+ {[%emt 0:00:03]} Kf8 {[%emt 0:00:01]} 64. Bxd2 {[%emt 0:00:00]} Ke7 {[%emt 0:00:01]} 65. Bxg5+ {[%emt 0:00:02]} Ke6 {[%emt 0:00:01]} 66. Bf6 {[%emt 0:00:01]} Bc5 {[%emt 0:00:01]} 67. Bd4 {[%emt 0:00:01]} Bd6 {[%emt 0:00:00]} 68. Kg7 {[%emt 0:00:01]} Be7 {[%emt 0:00:01]} 69. Kg8 {[%emt 0:00:01]} Bd6 {[%emt 0:00:01]} 70. Bg7 {[%emt 0:00:00]} Be7 {[%emt 0:00:00]} 71. Bf8 {[%emt 0:00:01]} Bg5 {[%emt 0:00:01]} 72. Bb4 {[%emt 0:00:01]} Bh6 {[%emt 0:00:00]} 73. Bd2 {[%emt 0:00:00]} Bxd2 {[%emt 0:00:03]} 74. f8=Q {[%emt 0:00:01]} Bxa5 {[%emt 0:00:01]} 75. Qf7+ {[%emt 0:00:00]} Kd6 {[%emt 0:00:01]} 76. Qb7 {[%emt 0:00:00]} Kc5 {[%emt 0:00:01]} 77. Qxa6 {[%emt 0:00:00]} Bb4 {[%emt 0:00:00]} 78. Kf7 {[%emt 0:00:01]} Kd4 {[%emt 0:00:01]} 79. Ke6 {[%emt 0:00:00]} Kc3 {[%emt 0:00:00]} 80. Qb5 {[%emt 0:00:01]} Kb3 {[%emt 0:00:01]} 81. Kd5 {[%emt 0:00:00]} Kc3 {[%emt 0:00:00]} 82. Qc4+ {[%emt 0:00:01]} Kd2 {[%emt 0:00:00]} 83. Qxb4+ {[%emt 0:00:00]} Ke3 {[%emt 0:00:01]} 84. Qc3+ {[%emt 0:00:01]} 1-0

[Event "CCT Chessable Masters Play-In 2025"]
[Site "Online"]
[Date "2025.02.17"]
[Round "2.26"]
[White "Theodorou, Nikolas"]
[Black "Lobanov, Sergei"]
[Result "1/2-1/2"]
[ECO "A05"]
[WhiteElo "2611"]
[BlackElo "2508"]
[PlyCount "84"]
[EventDate "2025.02.13"]
[EventType "swiss"]
[EventCountry "NET"]
[TimeControl "600"]
[WhiteClock "0:03:44"]
[BlackClock "0:02:48"]

1. Nf3 {[%emt 0:00:01]} d5 {[%emt 0:00:01]} 2. b3 {[%emt 0:00:00]} Nf6 {[%emt 0:00:02]} 3. Bb2 {[%emt 0:00:01]} e6 {[%emt 0:00:00]} 4. g3 {[%emt 0:00:04]} c5 {[%emt 0:00:03]} 5. Bg2 {[%emt 0:00:02]} Nc6 {[%emt 0:00:01]} 6. O-O {[%emt 0:00:01]} Be7 {[%emt 0:00:01]} 7. d3 {[%emt 0:00:02]} O-O {[%emt 0:00:01]} 8. Ne5 {[%emt 0:00:01]} Nxe5 {[%emt 0:00:02]} 9. Bxe5 {[%emt 0:00:00]} b6 {[%emt 0:00:05]} 10. Nd2 {[%emt 0:00:35]} Bb7 {[%emt 0:00:01]} 11. e4 {[%emt 0:00:01]} dxe4 {[%emt 0:00:21]} 12. Nxe4 {[%emt 0:00:03]} Nxe4 {[%emt 0:00:07]} 13. Bxe4 {[%emt 0:00:00]} Bxe4 {[%emt 0:00:10]} 14. dxe4 {[%emt 0:00:00]} Bf6 {[%emt 0:00:01]} 15. Qxd8 {[%emt 0:00:03]} Rfxd8 {[%emt 0:00:01]} 16. Bxf6 {[%emt 0:00:01]} gxf6 {[%emt 0:00:01]} 17. Rfd1 {[%emt 0:00:00]} Rd4 {[%emt 0:00:06]} 18. Re1 {[%emt 0:00:51]} Rad8 {[%emt 0:00:16]} 19. Kf1 {[%emt 0:00:02]} b5 {[%emt 0:00:13]} 20. Re3 {[%emt 0:00:20]} a5 {[%emt 0:00:28]} 21. Rae1 {[%emt 0:00:18]} Kg7 {[%emt 0:00:09]} 22. h4 {[%emt 0:00:32]} Kg6 {[%emt 0:00:06]} 23. Rf3 {[%emt 0:00:31]} a4 {[%emt 0:00:13]} 24. Rc3 {[%emt 0:00:02]} c4 {[%emt 0:00:04]} 25. a3 {[%emt 0:00:18]} cxb3 {[%emt 0:03:46]} 26. cxb3 {[%emt 0:00:00]} Rd3 {[%emt 0:00:01]} 27. Re3 {[%emt 0:00:16]} Rxc3 {[%emt 0:00:01]} 28. Rxc3 {[%emt 0:00:00]} b4 {[%emt 0:00:01]} 29. axb4 {[%emt 0:01:15]} a3 {[%emt 0:00:01]} 30. Rc1 {[%emt 0:00:30]} Rd3 {[%emt 0:00:32]} 31. Ra1 {[%emt 0:00:04]} Rxb3 {[%emt 0:00:01]} 32. b5 {[%emt 0:00:01]} f5 {[%emt 0:00:04]} 33. exf5+ {[%emt 0:00:06]} Kxf5 {[%emt 0:00:01]} 34. b6 {[%emt 0:00:00]} h5 {[%emt 0:00:02]} 35. b7 {[%emt 0:00:03]} Rxb7 {[%emt 0:00:01]} 36. Rxa3 {[%emt 0:00:00]} e5 {[%emt 0:00:01]} 37. Kg2 {[%emt 0:00:03]} f6 {[%emt 0:00:01]} 38. Rf3+ {[%emt 0:00:02]} Kg6 {[%emt 0:00:01]} 39. Ra3 {[%emt 0:00:00]} Rb2 {[%emt 0:00:01]} 40. Rc3 {[%emt 0:00:01]} Ra2 {[%emt 0:00:01]} 41. Rb3 {[%emt 0:00:01]} Rc2 {[%emt 0:00:01]} 42. Ra3 {[%emt 0:00:05]} Rb2 {[%emt 0:00:02]} 1/2-1/2